bitfinex/quotes_SOLUSD_20250219
["timestamp","ask_amount","ask_price","bid_price","bid_amount"]
[1739989519373,16.78753441,170.27,170.22,0.063]
[1739989519670,16.78753441,170.27,170.22,5.9374]
[1739989520264,16.78763441,170.28,170.22,5.9374]
[1739989520564,0.0001,170.28,170.24,16.78753441]
[1739989521041,0.0001,170.28,170.25,5.8737]
[1739989521246,0.0001,170.28,170.26,16.78753441]
[1739989521454,0.0001,170.28,170.26,44.08093609]
[1739989522347,0.0001,170.28,170.26,27.29340168]
[1739989522544,0.0001,170.28,170.27,22.52753441]
[1739989522765,0.063,170.33,170.29,1.0]
[1739989523064,0.063,170.33,170.32,41.30848327]
[1739989523372,16.85053441,170.41,170.33,18.64964886]
[1739989523670,16.85053441,170.41,170.35,16.78753441]
[1739989524748,16.78753441,170.39,170.33,27.29340168]
[1739989524949,16.78753441,170.38,170.33,27.29340168]
[1739989525170,16.78753441,170.36,170.33,33.16410168]
[1739989525347,16.78753441,170.36,170.33,5.8707]
[1739989525958,16.78753441,170.37,170.33,5.8707]
[1739989526947,16.78753441,170.38,170.33,5.8707]
[1739989527355,16.78753441,170.38,170.32,22.65883441]
[1739989527866,16.78753441,170.37,170.32,5.8713]
[1739989528267,16.78753441,170.34,170.31,5.8716]
[1739989528483,16.78753441,170.34,170.3,5.8719]
[1739989528662,16.78753441,170.35,170.3,5.8719]
[1739989528961,16.78753441,170.36,170.3,22.65943441]
[1739989529354,16.78753441,170.37,170.3,37.33933441]
[1739989529551,16.78753441,170.31,170.22,0.063]
[1739989529767,16.78753441,170.28,170.22,0.063]
[1739989529965,16.78753441,170.27,170.22,0.063]
[1739989530267,16.78753441,170.27,170.22,18.71264886]
[1739989531175,16.78753441,170.27,170.22,24.58724886]
[1739989531473,16.78753441,170.28,170.22,24.58724886]
[1739989531988,16.78753441,170.27,170.22,24.58724886]
[1739989533075,16.78753441,170.28,170.22,24.58724886]
[1739989535456,16.78753441,170.24,170.22,0.063]
[1739989535667,16.78753441,170.23,170.22,0.063]
[1739989536674,154.08753441,170.25,170.22,0.063]
[1739989537359,16.78753441,170.25,170.22,0.063]
[1739989537760,16.78753441,170.23,170.22,0.063]
[1739989537963,16.78753441,170.24,170.22,0.063]
[1739989539575,16.78753441,170.26,170.22,0.063]
[1739989540380,16.78753441,170.25,170.22,0.063]
[1739989541086,16.78753441,170.23,170.22,0.063]
[1739989542905,18.40523441,170.23,170.22,0.063]
[1739989544265,24.27963441,170.23,170.22,0.063]
[1739989544467,18.40523441,170.23,170.22,0.063]
[1739989545868,24.27963441,170.23,170.22,0.063]
[1739989548287,18.40523441,170.23,170.22,0.063]
[1739989548480,137.3,170.25,170.22,0.063]
[1739989548694,8.1982,170.27,170.22,0.063]
[1739989548897,16.78753441,170.24,170.22,0.063]
[1739989549188,16.78753441,170.25,170.22,0.063]
[1739989549367,4.7,170.28,170.22,0.063]
[1739989549368,16.78753441,170.26,170.22,0.063]
[1739989550374,21.48753441,170.28,170.22,0.063]
[1739989550584,16.78753441,170.27,170.22,0.063]
[1739989552282,16.78753441,170.27,170.22,5.9377]
[1739989552480,16.78753441,170.28,170.22,37.41203441]
[1739989552891,16.78753441,170.27,170.22,5.9377]
[1739989553888,16.78753441,170.28,170.22,5.9377]
[1739989554091,16.78753441,170.28,170.22,22.72523441]
[1739989554393,154.08753441,170.29,170.22,22.72523441]
[1739989554908,99.78753441,170.32,170.26,16.78753441]
[1739989555089,16.78753441,170.34,170.27,16.78753441]
[1739989555288,16.78753441,170.34,170.28,16.78753441]
[1739989555592,16.78753441,170.34,170.25,45.94305054]
[1739989555593,99.78753441,170.36,170.3,16.78753441]
[1739989555801,0.063,170.41,170.34,2.0]
[1739989555971,0.063,170.41,170.4,16.78753441]
[1739989556169,0.0001,170.41,170.4,68.59908495]
[1739989557887,0.0001,170.41,170.4,71.50416869]
[1739989558888,0.0001,170.41,170.4,78.62406536]
[1739989560894,0.0001,170.41,170.37,5.8695]
[1739989561298,0.0001,170.41,170.38,45.46216368]
[1739989561885,0.0001,170.41,170.37,5.8695]
[1739989562199,26.81251482,170.4,170.36,27.29340168]
[1739989562377,26.81251482,170.39,170.35,5.8702]
[1739989562578,26.81251482,170.38,170.34,99.0905]
[1739989562779,26.81251482,170.37,170.34,99.0905]
[1739989562997,26.81251482,170.4,170.34,99.0905]
[1739989563200,0.0001,170.41,170.36,26.81251482]
[1739989563379,0.0001,170.41,170.37,32.68201482]
[1739989564189,0.0001,170.41,170.38,45.46216368]
[1739989564486,0.0001,170.41,170.39,26.81251482]
[1739989565188,0.0001,170.41,170.37,59.9754165]
[1739989565505,0.0001,170.41,170.37,33.16290168]
[1739989566683,0.0001,170.41,170.37,59.9754165]
[1739989568109,0.0001,170.41,170.38,26.81251482]
[1739989568281,0.0001,170.41,170.37,47.83680168]
[1739989568487,0.0001,170.41,170.38,26.81251482]
[1739989568990,0.0001,170.41,170.39,26.81251482]
[1739989569509,0.0001,170.41,170.4,45.46216368]
[1739989570578,0.0001,170.41,170.4,51.33066368]
[1739989571189,0.0001,170.41,170.39,5.8688]
[1739989572398,0.0001,170.41,170.38,18.71264886]
[1739989572589,0.0001,170.41,170.38,24.58184886]
[1739989573694,0.0001,170.41,170.4,5.8685]
[1739989574108,0.0001,170.41,170.4,32.68101482]
[1739989574283,0.0001,170.41,170.4,5.8685]
[1739989575385,0.0001,170.41,170.38,5.9321]
[1739989576116,0.0001,170.41,170.38,32.74461482]
[1739989576632,0.0001,170.41,170.39,45.46216368]
[1739989577407,0.0001,170.41,170.39,18.64964886]
[1739989577597,0.0001,170.41,170.38,5.9321]
[1739989577801,0.0001,170.41,170.38,0.063]
[1739989579606,0.0001,170.41,170.38,26.87551482]
[1739989579796,0.0001,170.41,170.38,0.063]
[1739989581191,16.76961115,170.41,170.38,0.063]
[1739989581421,16.76951115,170.4,170.38,0.063]
[1739989582212,16.76951115,170.39,170.38,0.063]
[1739989582817,26.8483805,170.39,170.38,0.063]
[1739989584138,26.8484805,170.41,170.38,0.063]
[1739989584290,0.0001,170.41,170.38,0.063]
[1739989585400,0.0001,170.41,170.39,26.8483805]
[1739989585806,0.0001,170.41,170.38,26.9113805]
[1739989586507,0.0001,170.41,170.38,0.063]
[1739989587409,0.0001,170.41,170.39,26.8483805]
[1739989590000,0.0001,170.41,170.4,45.49802936]
[1739989591119,0.0001,170.41,170.4,73.79143104]
[1739989591306,0.0001,170.41,170.4,74.79143104]
[1739989591808,0.063,170.44,170.41,18.64964886]
[1739989592016,0.063,170.44,170.43,26.8483805]
[1739989592920,0.063,170.44,170.43,45.49802936]
[1739989593593,0.063,170.44,170.42,31.5483805]
[1739989593796,0.063,170.44,170.4,27.29340168]
[1739989594145,0.063,170.44,170.41,26.8483805]
[1739989594494,0.063,170.44,170.4,27.29340168]
[1739989594495,0.063,170.44,170.42,45.49802936]
[1739989595297,0.063,170.44,170.41,26.9113805]
[1739989595721,0.063,170.44,170.42,45.49802936]
[1739989595916,0.063,170.44,170.43,26.8483805]
[1739989596923,0.063,170.44,170.43,45.49802936]
[1739989597105,0.063,170.44,170.43,72.79143104]
[1739989598331,0.063,170.44,170.43,78.65893104]
[1739989599220,0.063,170.44,170.43,72.79143104]
[1739989599431,0.063,170.44,170.41,0.063]
[1739989600225,26.8483805,170.42,170.41,0.063]
[1739989601700,28.3697805,170.42,170.41,0.063]
[1739989602410,34.2375805,170.42,170.41,0.063]
[1739989603206,35.2375805,170.42,170.41,0.063]
[1739989603398,1.0,170.4,170.38,0.063]
[1739989603602,64.883061,170.39,170.38,0.063]
[1739989604205,38.0346805,170.39,170.38,0.063]
[1739989604525,43.9034805,170.39,170.38,0.063]
[1739989607521,70.751861,170.39,170.38,0.063]
[1739989607713,71.751861,170.39,170.38,0.063]
[1739989608447,44.9034805,170.39,170.38,0.063]
[1739989609021,91.40150986,170.39,170.38,0.0001]
[1739989609225,1.0,170.37,170.27,93.1]
[1739989609436,26.8483805,170.31,170.27,93.1]
[1739989610643,26.8483805,170.3,170.27,93.1]
[1739989611021,26.8483805,170.29,170.27,93.1]
[1739989611245,26.8483805,170.28,170.27,93.1]
[1739989611415,26.8483805,170.28,170.23,0.063]
[1739989611623,26.8483805,170.27,170.23,0.063]
[1739989612973,26.8483805,170.28,170.23,0.063]
[1739989614243,26.8483805,170.27,170.23,0.063]
[1739989615435,26.8483805,170.26,170.23,0.063]
[1739989616937,26.8483805,170.27,170.23,0.063]
[1739989617631,26.8483805,170.26,170.23,0.063]
[1739989619333,26.8483805,170.25,170.23,0.063]
[1739989620332,5.8733,170.26,170.23,0.063]
[1739989620333,26.8483805,170.24,170.23,0.063]
[1739989621724,32.7223805,170.24,170.23,0.063]
[1739989624825,22.69221427,170.24,170.23,0.063]
[1739989626023,16.81821427,170.24,170.23,0.063]
[1739989626762,32.77123437,170.24,170.23,0.063]
[1739989627930,26.89723437,170.25,170.23,0.063]
[1739989628330,26.89723437,170.24,170.23,0.063]
[1739989629339,1.0,170.23,170.22,0.063]
[1739989629651,1.0,170.22,170.2,0.063]
[1739989629847,32.53723437,170.21,170.2,0.063]
[1739989630044,38.41223437,170.21,170.2,0.063]
[1739989632457,65.30946874,170.21,170.2,0.063]
[1739989632646,1.0,170.2,170.09,0.063]
[1739989632841,26.89723437,170.13,170.09,0.063]
[1739989633350,26.89723437,170.13,170.09,24.59174886]
[1739989633540,26.89723437,170.14,170.09,24.59174886]
[1739989633941,26.89723437,170.14,170.09,18.71264886]
[1739989634756,26.89723437,170.13,170.09,0.063]
[1739989635133,26.89723437,170.13,170.09,5.9422]
[1739989636530,88.8765,170.17,170.09,51.48908323]
[1739989636531,26.89723437,170.15,170.09,51.48908323]
[1739989636731,26.89723437,170.14,170.09,24.59184886]
[1739989637149,26.89723437,170.13,170.09,24.59184886]
[1739989637339,26.89723437,170.13,170.09,0.063]
[1739989637543,26.89723437,170.15,170.09,18.71264886]
[1739989638462,26.89723437,170.15,170.1,5.8788]
[1739989640659,83.0,170.17,170.12,45.54688323]
[1739989640843,26.89723437,170.18,170.12,45.54688323]
[1739989641440,26.89723437,170.17,170.12,18.64964886]
[1739989642336,26.89723437,170.17,170.12,24.52774886]
[1739989645965,11.819047,170.16,170.1,55.85313605]
[1739989646553,26.89723437,170.17,170.1,58.75721659]
[1739989646866,26.89723437,170.16,170.1,58.75721659]
[1739989647850,26.89723437,170.16,170.11,5.8785]
[1739989648447,26.89723437,170.17,170.11,5.8785]
[1739989648651,15.75872935,170.19,170.13,16.81863747]
[1739989648855,15.75872935,170.19,170.15,16.81863747]
[1739989649049,15.75872935,170.19,170.16,5.8768]
[1739989650179,15.75872935,170.19,170.16,22.69543747]
[1739989650565,15.75872935,170.19,170.18,16.81863747]
[1739989650883,15.75872935,170.19,170.18,18.43893747]
[1739989651084,0.063,170.2,170.18,18.43893747]
[1739989651266,0.063,170.2,170.19,16.81863747]
[1739989652072,0.063,170.2,170.19,22.69433747]
[1739989652250,0.063,170.2,170.19,5.8757]
[1739989653549,16.88163747,170.2,170.14,5.8775]
[1739989653754,16.81863747,170.18,170.14,5.8775]
[1739989654369,16.81863747,170.17,170.14,5.8775]
[1739989654570,16.81863747,170.19,170.14,5.8775]
[1739989654777,16.81863747,170.18,170.14,5.8775]
[1739989655169,16.81863747,170.17,170.13,33.17110168]
[1739989655369,16.81863747,170.16,170.13,33.17110168]
[1739989655694,16.81863747,170.17,170.13,33.17110168]
[1739989655873,0.063,170.2,170.13,33.17110168]
[1739989656190,16.88163747,170.2,170.13,49.98973915]
[1739989656683,16.81863747,170.19,170.13,33.17110168]
[1739989656869,16.81863747,170.18,170.13,33.17110168]
[1739989657655,16.88163747,170.2,170.13,49.98973915]
[1739989658001,0.063,170.2,170.14,16.81863747]
[1739989658159,16.88163747,170.2,170.13,64.68433915]
[1739989659358,0.063,170.2,170.14,16.81863747]
[1739989659883,16.81863747,170.18,170.13,33.17110168]
[1739989661872,16.81863747,170.17,170.13,33.17110168]
[1739989662084,16.81863747,170.17,170.13,27.29330168]
[1739989662397,16.81863747,170.17,170.13,33.17100168]
[1739989663602,16.81863747,170.19,170.13,49.98963915]
[1739989663767,16.81863747,170.19,170.13,64.68423915]
[1739989664290,16.81863747,170.19,170.13,47.86560168]
[1739989665184,16.81863747,170.19,170.13,33.17100168]
[1739989668690,16.81863747,170.19,170.13,32.17100168]
[1739989673819,0.063,170.2,170.14,16.81863747]
[1739989674112,16.88163747,170.2,170.13,63.68423915]
[1739989674518,16.81863747,170.19,170.13,63.68423915]
[1739989678035,10.82579565,170.2,170.13,57.62839733]
[1739989678240,10.82579565,170.2,170.14,10.76279565]
[1739989678564,10.82579565,170.2,170.15,5.8771]
[1739989680429,10.76279565,170.19,170.14,5.8773]
[1739989680615,10.76279565,170.18,170.14,5.8773]
[1739989681610,10.76279565,170.19,170.14,5.8773]
[1739989682030,10.76279565,170.18,170.14,5.8773]
[1739989682507,10.76279565,170.17,170.14,5.8773]
[1739989682722,10.76279565,170.15,170.13,0.03]
[1739989682932,10.76279565,170.14,170.13,0.03]
[1739989683642,10.76279565,170.15,170.13,0.03]
[1739989685241,10.76279565,170.16,170.13,0.03]
[1739989686135,10.76279565,170.15,170.13,0.03]
[1739989688948,10.76279565,170.14,170.13,0.03]
[1739989690139,10.76279565,170.15,170.13,0.03]
[1739989690653,10.76279565,170.17,170.13,0.03]
[1739989691152,93.76279565,170.18,170.13,0.03]
[1739989691653,10.76279565,170.19,170.13,10.79279565]
[1739989691963,15.42579565,170.2,170.14,10.76279565]
[1739989692743,15.42579565,170.2,170.15,5.8771]
[1739989693051,0.063,170.19,170.15,5.8771]
[1739989693458,0.063,170.19,170.14,10.76279565]
[1739989693633,10.76279565,170.18,170.13,0.03]
[1739989693833,10.76279565,170.17,170.13,0.03]
[1739989694556,10.76279565,170.17,170.13,5.9077]
[1739989694736,10.76279565,170.17,170.13,0.03]
[1739989694937,10.76279565,170.18,170.13,0.03]
[1739989695555,10.76279565,170.16,170.13,0.03]
[1739989696071,83.063,170.19,170.13,0.03]
[1739989696072,10.76279565,170.18,170.13,0.03]
[1739989696369,83.063,170.19,170.13,0.03]
[1739989696370,10.76279565,170.17,170.13,0.03]
[1739989696666,0.063,170.19,170.14,10.76279565]
[1739989696869,0.063,170.19,170.15,5.8771]
[1739989702066,0.063,170.19,170.13,0.03]
[1739989702249,10.76279565,170.15,170.13,0.03]
[1739989702444,10.76279565,170.14,170.13,0.03]
[1739989703363,10.76279565,170.16,170.13,0.03]
[1739989704363,10.76279565,170.15,170.13,0.03]
[1739989704551,10.76279565,170.14,170.13,0.03]
[1739989704946,31.07074451,170.14,170.13,0.03]
[1739989705753,33.07074451,170.14,170.12,0.03]
[1739989705953,10.76279565,170.13,170.12,0.03]
[1739989706152,36.29024451,170.13,170.12,0.03]
[1739989706874,41.36889319,170.13,170.12,0.03]
[1739989707955,42.36889319,170.13,170.12,0.03]
[1739989708263,41.36889319,170.13,170.12,0.03]
[1739989708870,7.536,170.14,170.12,0.03]
[1739989709057,16.84144433,170.13,170.12,0.03]
[1739989709365,40.09109319,170.13,170.12,0.03]
[1739989710065,41.09109319,170.13,170.12,0.03]
[1739989710364,46.96889319,170.13,170.12,0.03]
[1739989710671,45.96889319,170.13,170.12,0.03]
[1739989711966,20.64964886,170.12,170.09,0.063]
[1739989712176,35.49109319,170.1,170.09,0.063]
[1739989712876,41.36989319,170.1,170.09,0.063]
[1739989714059,16.84144433,170.1,170.09,0.063]
[1739989714776,41.36989319,170.1,170.09,0.063]
[1739989714976,58.21133752,170.1,170.09,0.063]
[1739989718677,35.49109319,170.1,170.09,0.063]
[1739989719580,2.627,170.06,169.95,5.914]
[1739989719769,16.84144433,170.0,169.95,0.03]
[1739989719972,16.84144433,169.98,169.95,0.03]
[1739989720683,16.84144433,170.0,169.95,0.03]
[1739989721261,16.84144433,169.99,169.95,0.03]
[1739989721965,18.64964886,170.03,169.95,0.03]
[1739989721966,16.84144433,169.97,169.95,0.03]
[1739989722162,5.8816,170.02,169.95,0.03]
[1739989722163,99.84144433,169.96,169.95,0.03]
[1739989722362,16.84144433,169.96,169.95,0.03]
[1739989726681,9.594585,169.96,169.95,0.03]
[1739989728790,15.478285,169.96,169.95,0.03]
[1739989729168,34.12793386,169.96,169.95,0.03]
[1739989731374,138.3,169.98,169.95,0.03]
[1739989731375,137.3,169.98,169.95,0.03]
[1739989731594,146.894585,169.98,169.95,0.03]
[1739989732261,9.594585,169.98,169.95,0.03]
[1739989733387,9.594585,169.99,169.95,0.03]
[1739989733564,83.0,170.02,169.96,9.594585]
[1739989733770,83.0,170.02,169.97,9.594585]
[1739989734187,92.594585,170.02,169.96,11.256785]
[1739989734788,9.594585,170.01,169.96,1.6622]
[1739989735474,9.594585,169.99,169.96,1.6622]
[1739989735675,9.594585,169.98,169.95,0.03]
[1739989735887,9.594585,169.99,169.95,0.03]
[1739989736973,9.594585,169.98,169.95,0.03]
[1739989738596,9.594585,169.99,169.95,0.03]
[1739989738895,92.594585,170.0,169.95,0.03]
[1739989739194,9.594585,169.99,169.95,0.03]
[1739989739694,92.594585,169.99,169.95,0.03]
[1739989740173,9.594585,169.98,169.95,0.03]
[1739989740595,92.594585,169.99,169.95,0.03]
[1739989741084,220.3,169.98,169.95,0.03]
[1739989741286,9.594585,169.96,169.95,0.03]
[1739989741508,15.842085,169.96,169.95,0.03]
[1739989741679,41.37543386,169.96,169.95,0.03]
[1739989742210,15.842085,169.96,169.95,0.03]
[1739989742710,21.725785,169.96,169.95,0.03]
[1739989743910,20.078285,169.96,169.95,0.03]
[1739989744405,4.6,169.96,169.95,0.03]
[1739989744571,14.194585,169.96,169.95,0.03]
[1739989744979,20.078285,169.96,169.95,0.03]
[1739989746000,4.6,170.01,169.95,0.03]
[1739989746198,9.594585,169.99,169.95,0.03]
[1739989747197,9.594585,169.98,169.95,0.03]
[1739989747403,9.594585,169.97,169.95,0.03]
[1739989747591,9.594585,169.96,169.95,0.03]
[1739989748296,9.594585,169.98,169.95,0.03]
[1739989748708,9.594585,169.99,169.95,0.03]
[1739989749623,9.594585,169.98,169.95,0.03]
[1739989750631,9.594585,169.99,169.95,0.03]
[1739989751926,4.6,170.01,169.95,0.03]
[1739989751927,9.594585,170.01,169.95,9.624585]
[1739989752299,83.0,170.02,169.95,9.624585]
[1739989752300,92.594585,170.02,169.95,9.624585]
[1739989752690,92.594585,170.02,169.96,9.594585]
[1739989753388,83.0,170.02,169.97,17.479085]
[1739989754504,0.063,170.05,169.99,9.594585]
[1739989754505,9.657585,170.05,169.99,9.594585]
[1739989754816,0.063,170.05,170.0,9.594585]
[1739989755618,0.063,170.05,170.01,9.594585]
[1739989755913,0.063,170.05,170.0,9.594585]
[1739989756090,9.657585,170.05,169.99,9.594585]
[1739989756625,16.90772528,170.05,170.0,5.8823]
[1739989756939,0.063,170.05,170.0,37.43282528]
[1739989757395,0.063,170.05,170.01,16.84472528]
[1739989757601,0.063,170.05,170.0,37.43282528]
[1739989757997,0.063,170.05,170.01,16.84472528]
[1739989758826,0.063,170.05,170.02,5.8816]
[1739989758994,0.063,170.05,170.02,37.43042528]
[1739989760823,0.063,170.05,170.03,16.84472528]
[1739989762099,0.063,170.05,170.02,40.33994633]
[1739989763144,0.063,170.05,170.03,16.84472528]
[1739989763299,16.90772528,170.12,170.05,1.6009]
[1739989763503,0.063,170.12,170.07,16.84472528]
[1739989763718,0.063,170.12,170.05,34.13680168]
[1739989763719,0.063,170.12,170.08,16.84472528]
[1739989763925,0.063,170.12,170.1,16.84472528]
[1739989764431,0.063,170.12,170.11,5.8785]
[1739989764628,0.063,170.12,170.11,22.72322528]
[1739989764930,0.063,170.19,170.12,8.0365]
[1739989765131,0.063,170.19,170.16,16.84472528]
[1739989765906,0.063,170.19,170.15,16.84472528]
[1739989766524,0.063,170.19,170.16,5.8768]
[1739989766918,0.063,170.19,170.16,22.72152528]
[1739989767303,0.063,170.19,170.16,5.8768]
[1739989767611,0.063,170.19,170.17,16.84472528]
[1739989767820,0.063,170.19,170.18,16.84472528]
[1739989768237,0.063,170.19,170.17,16.84472528]
[1739989769030,0.063,170.19,170.17,22.72102528]
[1739989769337,0.063,170.19,170.18,16.84472528]
[1739989770829,0.063,170.19,170.18,41.37047414]
[1739989771033,0.0001,170.19,170.18,41.37047414]
[1739989772931,0.0001,170.19,170.18,5.8761]
[1739989773924,0.0001,170.19,170.14,43.13802696]
[1739989774237,16.84482528,170.19,170.15,5.8771]
[1739989774441,16.84472528,170.16,170.13,5.8776]
[1739989774739,16.84472528,170.16,170.12,5.8782]
[1739989775714,16.84472528,170.17,170.12,5.8782]
[1739989775919,16.84472528,170.15,170.1,5.8785]
[1739989776227,16.84472528,170.13,170.1,5.8785]
[1739989776823,16.84472528,170.13,170.08,93.32]
[1739989777027,16.84472528,170.13,170.09,5.8792]
[1739989777230,16.84472528,170.14,170.09,5.8792]
[1739989777538,16.84472528,170.13,170.09,5.8792]
[1739989777719,16.84472528,170.13,170.08,99.1995]
[1739989779117,16.84472528,170.14,170.08,99.1995]
[1739989779723,16.84472528,170.15,170.09,16.84472528]
[1739989779929,99.84472528,170.16,170.1,16.84472528]
[1739989780127,83.0,170.16,170.12,16.84472528]
[1739989780438,99.84482528,170.19,170.12,16.84472528]
[1739989780640,16.84472528,170.18,170.12,16.84472528]
[1739989781945,16.84472528,170.17,170.11,22.72312528]
[1739989789734,16.84472528,170.17,170.11,5.8784]
[1739989789936,16.84472528,170.17,170.11,22.72312528]
[1739989790503,16.84472528,170.18,170.12,16.84472528]
[1739989791453,16.84472528,170.18,170.13,5.8778]
[1739989791630,83.0001,170.19,170.12,5.8781]
[1739989791631,16.84472528,170.17,170.12,5.8781]
[1739989792040,16.84472528,170.18,170.12,22.72282528]
[1739989792735,0.0001,170.19,170.15,16.84472528]
[1739989792927,0.0001,170.19,170.16,16.84472528]
[1739989793750,0.0001,170.19,170.17,5.8764]
[1739989796359,0.0001,170.19,170.16,16.84472528]
[1739989796360,0.0001,170.19,170.16,5.8766]
[1739989797552,0.0001,170.19,170.15,5.8771]
[1739989798768,16.84482528,170.19,170.15,5.8771]
[1739989799248,0.0001,170.19,170.13,16.84472528]
[1739989799446,16.84472528,170.16,170.12,26.29330168]
[1739989799651,16.84472528,170.16,170.09,16.84472528]
[1739989800061,16.84472528,170.16,170.1,19.7375719]
[1739989800267,16.84472528,170.17,170.1,19.7375719]
[1739989800572,83.0,170.18,170.14,16.84472528]
[1739989801376,83.0,170.18,170.1,21.54249548]
[1739989801377,83.0,170.18,170.15,16.84472528]
[1739989801896,83.0,170.18,170.16,16.84472528]
[1739989802038,0.0001,170.19,170.16,16.84472528]
[1739989802366,0.0001,170.19,170.14,16.84472528]
[1739989803044,0.98036976,170.2,170.14,16.84472528]
[1739989803483,16.84472528,170.21,170.15,16.84472528]
[1739989803654,4.643,170.23,170.19,16.84472528]
[1739989803655,0.063,170.23,170.19,16.84472528]
[1739989803865,0.063,170.23,170.2,5.8754]
[1739989804183,0.063,170.23,170.21,16.84472528]
[1739989804479,0.063,170.23,170.22,16.84472528]
[1739989805284,0.063,170.23,170.21,26.29330168]
[1739989805582,16.84472528,170.22,170.16,47.60486143]
[1739989805793,16.84472528,170.21,170.17,5.8764]
[1739989806000,16.84472528,170.18,170.11,34.53950168]
[1739989806294,16.84472528,170.17,170.12,5.8782]
[1739989806697,87.58,170.2,170.12,5.8782]
[1739989806698,16.84472528,170.18,170.12,5.8782]
[1739989806871,16.84472528,170.16,170.12,5.8782]
[1739989807055,16.84472528,170.15,170.11,0.03]
[1739989807567,16.84472528,170.16,170.11,5.9084]
[1739989808667,16.84472528,170.15,170.11,0.03]
[1739989808867,88.8762,170.18,170.11,0.03]
[1739989808868,16.84472528,170.12,170.11,0.03]
[1739989810856,16.84472528,170.13,170.11,0.03]
[1739989811061,16.84472528,170.15,170.11,0.03]
[1739989811662,16.84472528,170.14,170.11,0.03]
[1739989812882,16.84472528,170.13,170.11,0.03]
[1739989813194,83.0,170.16,170.11,0.03]
[1739989813195,16.84472528,170.12,170.11,0.03]
[1739989815178,22.72292528,170.12,170.11,0.03]
[1739989815409,16.84472528,170.12,170.11,0.03]
[1739989818199,99.84472528,170.13,170.11,0.03]
[1739989819285,105.72252528,170.13,170.11,0.03]
[1739989819496,16.84472528,170.12,170.11,0.03]
[1739989819665,22.72292528,170.12,170.11,0.03]
[1739989821378,16.84472528,170.12,170.11,0.03]
[1739989821884,22.72292528,170.12,170.11,0.03]
[1739989822086,179.67257414,170.12,170.11,0.03]
[1739989822972,154.14472528,170.12,170.11,0.03]
[1739989823170,137.3,170.12,170.11,0.03]
[1739989823882,16.84472528,170.15,170.11,0.03]
[1739989824083,99.84472528,170.16,170.11,0.03]
[1739989824287,83.0,170.15,170.11,0.03]
[1739989824782,83.0,170.15,170.09,14.42472528]
[1739989824988,83.0,170.15,170.1,16.84472528]
[1739989825175,83.0,170.15,170.11,16.84472528]
[1739989825582,83.0,170.15,170.12,5.8782]
[1739989825783,99.87472528,170.2,170.13,16.84472528]
[1739989825983,0.03,170.2,170.17,16.84472528]
[1739989826293,0.03,170.2,170.19,16.84472528]
[1739989826789,0.03,170.2,170.18,16.84472528]
[1739989827095,16.87472528,170.2,170.14,16.84472528]
[1739989827268,16.87472528,170.2,170.12,22.72292528]
[1739989827269,16.84472528,170.18,170.12,22.72292528]
[1739989827601,16.84472528,170.19,170.14,5.8775]
[1739989829095,16.87472528,170.2,170.14,5.8775]
[1739989829301,0.03,170.2,170.16,16.84472528]
[1739989829611,0.03,170.2,170.17,16.84472528]
[1739989829775,0.03,170.2,170.16,16.84472528]
[1739989830092,0.03,170.2,170.19,16.84472528]
[1739989831000,0.03,170.2,170.17,16.84472528]
[1739989831199,0.03,170.2,170.17,5.8763]
[1739989832382,0.03,170.2,170.15,5.8769]
[1739989832383,16.87472528,170.2,170.15,5.8769]
[1739989832582,0.03,170.2,170.15,22.72162528]
[1739989832906,0.03,170.2,170.16,16.84472528]
[1739989833206,0.03,170.2,170.17,16.84472528]
[1739989833414,0.03,170.2,170.17,5.8764]
[1739989834801,0.03,170.2,170.17,22.72112528]
[1739989835607,0.03,170.2,170.19,16.84472528]